bitfinex/quotes_SOLUSD_20251103
["timestamp","ask_amount","ask_price","bid_price","bid_amount"]
[1762141470038,4.85841561,179.55,179.51,0.7]
[1762141470211,4.85841561,179.54,179.51,0.7]
[1762141470815,4.85841561,179.53,179.48,6.27138171]
[1762141471021,4.85841561,179.51,179.37,5.57506829]
[1762141471224,4.85841561,179.51,179.46,0.7]
[1762141471914,69.4944307,179.54,179.46,0.7]
[1762141472138,4.85841561,179.51,179.46,0.7]
[1762141472435,4.85841561,179.51,179.46,6.27212185]
[1762141472653,4.85841561,179.51,179.46,0.7]
[1762141472654,10.42921712,179.51,179.46,0.7]
[1762141472958,4.85841561,179.5,179.46,0.7]
[1762141473445,4.85841561,179.51,179.46,0.7]
[1762141473643,4.85841561,179.52,179.46,5.55841561]
[1762141474115,4.85841561,179.52,179.47,0.7]
[1762141474310,4.85841561,179.52,179.47,6.27180187]
[1762141474846,4.85841561,179.52,179.48,0.7]
[1762141476026,4.85841561,179.52,179.48,6.27163052]
[1762141476315,4.85841561,179.53,179.48,6.27163052]
[1762141476619,4.85841561,179.53,179.49,0.67]
[1762141476820,4.85841561,179.52,179.49,0.67]
[1762141477029,4.85841561,179.52,179.47,0.67]
[1762141477241,4.85841561,179.5,179.44,5.52841561]
[1762141477454,50.16,179.53,179.44,5.52841561]
[1762141477455,4.85841561,179.48,179.44,0.67]
[1762141477615,4.85841561,179.48,179.41,9.78882769]
[1762141477616,4.85841561,179.45,179.41,0.67]
[1762141478313,4.85841561,179.44,179.41,0.67]
[1762141479028,4.85841561,179.45,179.41,0.67]
[1762141479343,4.85841561,179.44,179.41,0.67]
[1762141479548,4.85841561,179.45,179.41,0.67]
[1762141479845,4.85841561,179.44,179.41,0.67]
[1762141480147,10.4313861,179.44,179.41,0.67]
[1762141480552,10.4313861,179.44,179.38,0.67]
[1762141480553,4.85841561,179.42,179.38,0.67]
[1762141480735,4.85841561,179.4,179.36,0.67]
[1762141481051,19.5052041,179.44,179.36,0.67]
[1762141481052,4.85841561,179.41,179.36,0.67]
[1762141481352,4.85841561,179.4,179.36,0.67]
[1762141481854,4.85841561,179.39,179.34,6.24595882]
[1762141482054,4.85841561,179.38,179.34,0.67]
[1762141482230,4.85841561,179.39,179.34,0.67]
[1762141482425,4.85841561,179.37,179.32,0.67]
[1762141482626,4.85841561,179.36,179.32,0.67]
[1762141482847,4.85841561,179.35,179.29,0.67]
[1762141483037,4.85841561,179.35,179.29,5.52841561]
[1762141483233,4.85841561,179.36,179.3,26.12041561]
[1762141483437,4.85841561,179.4,179.34,4.85841561]
[1762141483635,4.85841561,179.4,179.35,0.67]
[1762141484036,70.592,179.45,179.35,5.52841561]
[1762141484240,4.85841561,179.46,179.4,4.85841561]
[1762141484547,10.43068798,179.46,179.4,4.85841561]
[1762141484739,5.57227237,179.46,179.4,4.85841561]
[1762141484947,60.43041007,179.47,179.41,5.52841561]
[1762141485252,59.78882769,179.54,179.45,4.85841561]
[1762141485253,0.16,179.53,179.45,4.85841561]
[1762141485450,4.85841561,179.51,179.42,0.67]
[1762141485651,4.85841561,179.5,179.42,0.67]
[1762141485835,4.85841561,179.5,179.44,4.85841561]
[1762141486040,4.85841561,179.5,179.43,4.85841561]
[1762141486243,10.429519,179.5,179.44,5.57289344]
[1762141486855,5.57110339,179.5,179.44,6.26289344]
[1762141487065,10.429519,179.5,179.44,6.26289344]
[1762141487539,4.85841561,179.5,179.44,11.12130905]
[1762141488147,4.85841561,179.51,179.45,0.69]
[1762141488461,4.85841561,179.5,179.45,0.69]
[1762141489560,19.65534896,179.53,179.45,0.69]
[1762141489733,4.85841561,179.51,179.45,5.54841561]
[1762141489934,5.5700997,179.53,179.45,5.54841561]
[1762141489935,4.85841561,179.52,179.46,0.69]
[1762141490530,4.85841561,179.53,179.47,4.85841561]
[1762141490730,54.85841561,179.58,179.47,9.78882769]
[1762141491065,4.85841561,179.57,179.51,4.85841561]
[1762141491230,50.0,179.58,179.48,0.69]
[1762141491231,4.85841561,179.56,179.5,4.85841561]
[1762141491637,50.0,179.58,179.48,0.69]
[1762141491638,4.85841561,179.55,179.49,4.85841561]
[1762141491959,4.53270126,179.61,179.48,0.69]
[1762141491960,4.85841561,179.52,179.48,0.69]
[1762141492660,4.85841561,179.52,179.45,20.592]
[1762141492661,4.85841561,179.52,179.45,5.57232457]
[1762141492841,4.85841561,179.5,179.45,5.57232457]
[1762141493045,50.0,179.54,179.47,4.85841561]
[1762141493248,20.752,179.55,179.42,0.69]
[1762141493249,4.85841561,179.48,179.42,0.69]
[1762141493568,4.85841561,179.46,179.42,0.69]
[1762141493859,4.85841561,179.45,179.41,9.74935966]
[1762141494360,4.85841561,179.45,179.41,16.01305865]
[1762141494559,4.85841561,179.45,179.41,10.43935966]
[1762141494770,4.85841561,179.44,179.41,10.43935966]
[1762141494946,4.85841561,179.44,179.41,9.74935966]
[1762141496168,4.85841561,179.45,179.41,9.74935966]
[1762141496564,4.85841561,179.48,179.42,5.54841561]
[1762141496766,4.85841561,179.47,179.42,0.69]
[1762141497063,4.85841561,179.45,179.42,0.69]
[1762141497369,4.85841561,179.45,179.41,9.74935966]
[1762141497677,10.4308892,179.46,179.42,0.69]
[1762141497842,4.85841561,179.47,179.42,0.69]
[1762141498650,4.85841561,179.48,179.42,5.54841561]
[1762141498969,4.85841561,179.47,179.42,0.69]
[1762141499461,4.85841561,179.46,179.42,0.69]
[1762141499650,10.43079492,179.46,179.42,0.69]
[1762141499850,4.85841561,179.46,179.42,0.69]
[1762141500056,5.57159362,179.49,179.42,6.26350617]
[1762141500255,4.85841561,179.46,179.42,0.69]
[1762141500659,4.85841561,179.46,179.41,9.74935966]
[1762141500660,4.85841561,179.43,179.41,9.74935966]
[1762141500875,4.85841561,179.43,179.37,0.69]
[1762141500876,75.45041561,179.42,179.28,0.69]
[1762141501146,50.0,179.37,179.28,0.69]
[1762141501355,50.0,179.37,179.28,5.54841561]
[1762141501658,50.0,179.37,179.31,4.85841561]
[1762141501956,5.63444673,179.39,179.29,0.69]
[1762141502159,50.0,179.38,179.29,5.54841561]
[1762141502372,20.592,179.42,179.29,5.54841561]
[1762141502373,55.5741527,179.4,179.29,0.69]
[1762141502679,4.85841561,179.33,179.24,9.78882769]
[1762141502975,4.85841561,179.33,179.27,5.54841561]
[1762141503273,4.85841561,179.33,179.27,26.14041561]
[1762141503469,50.06,179.38,179.28,0.69]
[1762141503675,4.85841561,179.29,179.25,0.69]
[1762141504176,4.85841561,179.29,179.23,0.1]
[1762141504385,50.0,179.27,179.23,0.1]
[1762141504667,4.85841561,179.26,179.23,0.1]
[1762141504886,54.85841561,179.27,179.23,0.1]
[1762141505095,4.85841561,179.24,179.23,0.1]
[1762141505383,54.85841561,179.24,179.23,0.1]
[1762141505601,60.49752741,179.24,179.23,0.1]
[1762141505745,120.2863551,179.24,179.23,0.04]
[1762141506062,50.0,179.24,179.23,0.04]
[1762141506260,59.78882769,179.24,179.23,0.04]
[1762141506460,50.0,179.24,179.23,0.04]
[1762141507282,54.85841561,179.24,179.23,0.04]
[1762141508173,75.45041561,179.24,179.23,0.04]
[1762141508352,85.2392433,179.24,179.23,0.04]
[1762141508555,75.45041561,179.24,179.23,0.04]
[1762141508759,70.592,179.24,179.23,0.04]
[1762141508978,75.45041561,179.24,179.23,0.04]
[1762141509151,54.85841561,179.24,179.23,0.04]
[1762141509362,75.45041561,179.24,179.23,0.04]
[1762141509675,55.58133058,179.17,179.1,0.67]
[1762141509867,4.85841561,179.13,179.1,0.67]
[1762141510376,7.17714866,179.13,179.1,0.67]
[1762141510573,50.0,179.15,179.06,0.67]
[1762141510786,50.0,179.15,179.03,11.86010749]
[1762141510787,7.17714866,179.08,179.03,12.53010749]
[1762141510999,7.17714866,179.05,179.03,11.86010749]
[1762141511200,50.0,179.06,179.03,11.86010749]
[1762141511493,7.17714866,179.04,179.03,11.86010749]
[1762141511677,7.17714866,179.05,179.03,11.86010749]
[1762141511995,50.0,179.06,179.03,11.86010749]
[1762141511996,50.0,179.08,179.03,10.3072918]
[1762141512202,50.0,179.1,179.03,15.89277253]
[1762141512501,50.0,179.1,179.04,0.67]
[1762141512663,57.17714866,179.12,179.04,0.67]
[1762141512868,7.17714866,179.09,179.04,0.67]
[1762141513069,7.17714866,179.1,179.04,0.67]
[1762141513367,50.0,179.18,179.09,7.17714866]
[1762141513565,7.17714866,179.16,179.1,5.58347292]
[1762141513987,57.17714866,179.16,179.11,0.67]
[1762141514192,9.78882769,179.24,179.11,0.67]
[1762141514193,7.17714866,179.18,179.11,0.67]
[1762141514505,7.17714866,179.13,179.09,0.67]
[1762141514680,50.0,179.17,179.09,0.67]
[1762141514990,7.17714866,179.14,179.09,0.67]
[1762141515208,50.0,179.17,179.09,0.67]
[1762141515379,7.17714866,179.18,179.11,7.17714866]
[1762141515700,7.17714866,179.18,179.12,26.71712185]
[1762141515884,57.17714866,179.19,179.13,0.67]
[1762141516062,50.0,179.24,179.14,7.17714866]
[1762141516263,3.49311424,179.23,179.19,7.17714866]
[1762141516484,7.17714866,179.24,179.2,0.67]
[1762141516895,50.0,179.26,179.2,0.67]
[1762141516896,57.17714866,179.26,179.2,0.67]
[1762141517090,7.17714866,179.24,179.2,0.67]
[1762141517270,13.94280813,179.31,179.16,0.67]
[1762141517271,7.17714866,179.21,179.16,0.67]
[1762141517484,3.49311343,179.22,179.16,7.84714866]
[1762141517670,7.17714866,179.24,179.17,0.67]
[1762141517871,7.17714866,179.18,179.13,0.67]
[1762141518176,7.17714866,179.21,179.14,7.17714866]
[1762141518486,55.57880474,179.25,179.14,7.17714866]
[1762141518689,7.17714866,179.19,179.15,0.67]
[1762141519191,3.49208286,179.21,179.15,0.67]
[1762141519391,57.17714866,179.26,179.19,7.17714866]
[1762141519598,10.66909022,179.25,179.17,19.53452028]
[1762141519770,10.66909022,179.24,179.18,7.17714866]
[1762141519974,7.17714866,179.26,179.2,7.17714866]
[1762141520198,3.49171356,179.25,179.21,0.67]
[1762141520378,10.66886222,179.24,179.21,0.67]
[1762141520580,7.17714866,179.22,179.18,0.67]
[1762141520793,7.17714866,179.19,179.14,0.67]
[1762141520996,7.17714866,179.16,179.14,0.67]
[1762141521308,27.76914866,179.25,179.11,5.58316118]
[1762141521309,7.17714866,179.15,179.11,6.25316118]
[1762141521479,7.17714866,179.15,179.11,0.67]
[1762141521676,7.17714866,179.14,179.1,5.58342864]
[1762141521902,7.17714866,179.14,179.09,0.67]
[1762141522476,3.49061242,179.13,179.09,0.67]
[1762141522704,7.17714866,179.14,179.09,6.25377352]
[1762141522880,59.94437888,179.18,179.09,6.25377352]
[1762141523079,7.17714866,179.13,179.1,0.67]
[1762141523587,7.17714866,179.14,179.1,0.67]
[1762141523816,7.17714866,179.11,179.06,0.67]
[1762141523976,3.49042458,179.1,179.05,12.76218077]
[1762141524178,3.48912629,179.09,179.07,0.67]
[1762141524401,7.17714866,179.09,179.07,0.67]
[1762141524601,10.66501781,179.08,179.04,0.67]
[1762141524905,7.17714866,179.06,179.03,10.3072918]
[1762141525230,4.36339733,179.11,179.04,7.84714866]
[1762141525527,3.48597969,179.1,179.05,7.84714866]
[1762141525724,3.48597969,179.09,179.06,5.5847202]
[1762141525925,74.95539733,179.12,179.06,5.5847202]
[1762141525926,3.48597969,179.08,179.06,0.69]
[1762141526136,74.95539733,179.12,179.06,0.69]
[1762141526306,74.95539733,179.12,179.05,5.5850096]
[1762141526307,7.17714866,179.1,179.05,5.5850096]
[1762141526623,20.592,179.15,179.07,7.17714866]
[1762141526624,7.17714866,179.13,179.07,7.17714866]
[1762141526831,7.17714866,179.1,179.06,0.69]
[1762141527121,10.66240934,179.09,179.06,0.69]
[1762141527311,7.17714866,179.07,179.03,10.3072918]
[1762141527498,7.17714866,179.05,179.03,10.3072918]
[1762141527698,3.48526068,179.04,179.03,10.3072918]
[1762141528112,9.07060473,179.04,179.03,10.3072918]
[1762141528294,3.48526068,179.04,179.03,10.3072918]
[1762141528500,3.48526068,179.04,179.03,10.9972918]
[1762141529225,7.17714866,179.06,179.03,10.9972918]
[1762141529426,3.48073305,179.05,179.03,10.9972918]
[1762141529622,3.48073305,179.04,179.03,10.9972918]
[1762141530029,7.17714866,179.09,179.03,23.76009649]
[1762141530236,7.17714866,179.04,179.03,10.3072918]
[1762141530729,7.17714866,179.04,178.76,146.93397686]
[1762141530730,2.917,178.96,178.76,146.93397686]
[1762141530931,57.17714866,178.78,178.76,146.93397686]
[1762141531134,50.0,178.78,178.76,146.93397686]
[1762141531313,50.0,178.78,178.76,106.46482138]
[1762141531314,35.70597634,178.77,178.76,106.46482138]
[1762141531504,7.17714866,178.77,178.76,106.00482138]
[1762141531699,50.0,178.67,178.57,0.69]
[1762141531906,20.592,178.69,178.57,0.69]
[1762141531907,50.0,178.69,178.57,0.69]
[1762141532135,50.0,178.71,178.59,7.17714866]
[1762141532328,50.0,178.75,178.67,0.69]
[1762141532635,7.17714866,178.73,178.67,0.69]
[1762141532932,50.0,178.78,178.67,0.69]
[1762141533308,50.0,178.78,178.67,7.86714866]
[1762141533309,7.17714866,178.74,178.67,7.86714866]
[1762141533805,50.0,178.78,178.68,19.58809043]
[1762141534005,7.17714866,178.74,178.68,19.58809043]
[1762141534717,84.57566707,178.78,178.66,1e-08]
[1762141534912,84.57566707,178.78,178.5,3.0]
[1762141534913,50.0,178.56,178.5,3.0]
[1762141535130,1.99999999,178.68,178.5,3.0]
[1762141535131,50.0,178.58,178.53,0.69]
[1762141535439,50.0,178.6,178.56,5.60035842]
[1762141535668,7.17714866,178.61,178.56,5.60035842]
[1762141535843,50.0,178.64,178.56,5.60035842]
[1762141536029,7.17714866,178.58,178.55,153.06058492]
[1762141536338,50.0,178.57,178.55,147.46]
[1762141536550,7.17714866,178.62,178.55,148.17]
[1762141536712,7.17714866,178.64,178.56,0.71]
[1762141537044,50.0,178.67,178.56,0.71]
[1762141537045,7.17714866,178.66,178.56,0.71]
[1762141537241,50.0,178.75,178.62,20.592]
[1762141537447,50.0,178.75,178.63,0.71]
[1762141537744,7.17714866,178.72,178.65,19.59137978]
[1762141538121,7.17714866,178.72,178.65,20.30137978]
[1762141538323,7.17714866,178.7,178.65,6.30753708]
[1762141538522,70.592,178.79,178.65,5.59753708]
[1762141538523,7.17714866,178.68,178.65,5.59753708]
[1762141538827,7.17714866,178.66,178.61,5.59877666]
[1762141539353,50.0,178.69,178.61,5.59877666]
[1762141539540,7.17714866,178.66,178.61,6.30877666]
[1762141539746,50.0,178.69,178.61,6.30877666]
[1762141539941,7.17714866,178.66,178.61,6.30877666]
[1762141540137,7.17714866,178.66,178.61,20.30575331]
[1762141540440,50.0,178.71,178.62,0.71]
[1762141540826,7.17714866,178.69,178.62,0.71]
[1762141541042,50.0,178.71,178.62,0.71]
[1762141541043,7.17714866,178.67,178.62,0.71]
[1762141541526,50.0,178.71,178.62,0.71]
[1762141541725,7.17714866,178.67,178.63,5.5981638]
[1762141541925,70.592,178.76,178.57,20.592]
[1762141541926,7.17714866,178.65,178.57,5.59974267]
[1762141542235,7.17714866,178.65,178.58,0.71]
[1762141542429,50.0,178.68,178.58,0.71]
[1762141542758,7.17714866,178.65,178.58,0.71]
[1762141543059,5.59610862,178.7,178.6,7.17714866]
[1762141543060,50.0,178.7,178.6,7.17714866]
[1762141543245,7.17714866,178.69,178.58,0.71]
[1762141543430,7.17714866,178.69,178.6,7.17714866]
[1762141543623,50.0,178.72,178.62,7.17714866]
[1762141543859,7.17714866,178.7,178.64,5.59785042]
[1762141544062,7.17714866,178.7,178.64,19.59247648]
[1762141544225,16.74,178.82,178.64,19.59247648]
[1762141544226,50.0,178.76,178.65,0.71]
[1762141544560,7.17714866,178.72,178.65,0.71]
[1762141545334,7.17714866,178.73,178.65,0.71]
[1762141545539,7.17714866,178.73,178.66,26.76743187]
[1762141545740,7.17714866,178.75,178.66,26.76743187]
[1762141545937,7.17714866,178.76,178.67,0.72]
[1762141546134,7.17714866,178.8,178.7,7.17714866]
[1762141546331,7.17714866,178.81,178.72,7.17714866]
[1762141546745,7.17714866,178.81,178.73,0.72]
[1762141546924,7.17714866,178.81,178.74,7.17714866]
[1762141547260,7.17714866,178.83,178.75,0.72]
[1762141547465,50.0,178.85,178.76,7.17714866]
[1762141547631,57.17714866,178.85,178.77,19.578229]
[1762141547833,7.17714866,178.83,178.77,20.298229]
[1762141548136,50.0,178.87,178.78,0.72]
[1762141548362,7.17714866,178.84,178.78,0.72]
[1762141548836,7.17714866,178.86,178.78,7.89714866]
[1762141549228,7.17714866,178.86,178.79,0.72]
[1762141549430,7.17714866,178.82,178.76,6.31383931]
[1762141549658,7.17714866,178.8,178.76,6.31383931]
[1762141549844,7.17714866,178.78,178.72,0.72]
[1762141550049,50.0,178.81,178.72,0.72]
[1762141550051,7.17714866,178.76,178.72,0.72]
[1762141550251,7.17714866,178.8,178.72,7.89714866]
[1762141550436,7.17714866,178.82,178.74,7.17714866]
[1762141550850,7.17714866,178.82,178.75,0.72]
[1762141551231,7.17714866,178.8,178.75,0.72]
[1762141551541,55.59130777,178.85,178.71,19.58450886]
[1762141551542,7.17714866,178.78,178.71,20.30450886]
[1762141551747,7.17714866,178.78,178.72,0.72]
[1762141552252,7.17714866,178.8,178.72,7.89714866]
[1762141552650,7.17714866,178.8,178.73,0.72]
[1762141552965,7.17714866,178.86,178.78,7.17714866]
[1762141553153,7.17714866,178.84,178.79,0.72]
[1762141553342,7.17714866,178.8,178.68,9.78882769]
[1762141553541,7.17714866,178.77,178.74,0.72]
[1762141553868,7.17714866,178.79,178.74,6.31443554]
[1762141554164,7.17714866,178.79,178.74,0.72]
[1762141554477,7.17714866,178.78,178.75,0.72]
[1762141554787,7.17714866,178.8,178.75,0.72]
[1762141554943,50.0,178.87,178.77,7.17714866]
[1762141555149,50.0,178.87,178.75,7.89714866]
[1762141555378,7.17714866,178.83,178.76,0.72]
[1762141555780,7.17714866,178.83,178.77,5.59377971]
[1762141556081,7.17714866,178.85,178.77,5.59377971]
[1762141556274,7.17714866,178.86,178.78,0.72]
[1762141557078,7.17714866,178.84,178.78,0.72]
[1762141557559,7.17714866,178.86,178.78,0.72]
[1762141557760,7.17714866,178.86,178.79,5.59315397]
[1762141558055,7.17714866,178.84,178.78,0.72]
[1762141558279,7.17714866,178.82,178.78,6.31345755]
[1762141558580,7.17714866,178.84,178.79,0.72]
[1762141559250,7.17714866,178.82,178.76,5.59409263]
[1762141559456,7.17714866,178.82,178.79,0.72]
[1762141559662,7.17714866,178.85,178.79,0.72]
[1762141559865,12.7684428,178.85,178.79,6.31313858]
[1762141560068,8.91714866,178.8,178.6,7.17714866]
[1762141560394,8.91714866,178.8,178.66,10.46935966]
[1762141560395,7.17714866,178.7,178.66,10.46935966]
[1762141560709,50.0,178.72,178.66,9.74935966]
[1762141560710,7.17714866,178.68,178.66,9.74935966]
[1762141560867,50.55956577,178.67,178.66,9.74935966]
[1762141561262,70.592,178.66,178.58,0.72]
[1762141561459,7.17714866,178.62,178.58,0.72]
[1762141562179,7.17714866,178.62,178.58,6.31966343]
[1762141562352,7.17714866,178.63,178.58,6.31966343]
[1762141562554,7.17714866,178.65,178.59,0.72]
[1762141562967,0.55956577,178.64,178.59,0.72]
[1762141563154,7.17714866,178.64,178.59,0.72]
[1762141563671,7.17714866,178.63,178.59,0.72]
[1762141563870,7.17714866,178.63,178.6,5.59910414]
[1762141564188,0.55956577,178.66,178.6,5.59910414]
[1762141564353,7.17714866,178.64,178.61,0.72]
[1762141564753,50.0,178.75,178.61,0.72]
[1762141565058,7.17714866,178.7,178.61,0.72]
[1762141565482,5.59315397,178.79,178.63,20.592]
[1762141565483,7.17714866,178.72,178.63,20.592]
[1762141565654,7.17714866,178.72,178.65,20.592]
[1762141565856,7.17714866,178.72,178.64,0.55978504]
[1762141565857,7.17714866,178.74,178.66,20.31028321]
[1762141566177,0.55956577,178.79,178.67,0.55969105]
[1762141566378,7.17714866,178.81,178.7,7.17714866]
[1762141566581,7.17714866,178.81,178.71,0.55956577]
[1762141566880,7.17714866,178.81,178.7,1.22959709]
[1762141567081,7.17714866,178.8,178.7,8.40674575]
[1762141567274,7.17714866,178.8,178.71,0.67]
[1762141567603,6.15099615,178.85,178.71,0.67]
[1762141567604,7.17714866,178.76,178.71,0.67]
[1762141567899,0.55956577,178.83,178.72,5.59534467]
[1762141568102,0.55956577,178.83,178.72,19.58370635]
[1762141568266,50.0,178.86,178.74,7.17714866]
[1762141568267,7.17714866,178.84,178.74,7.17714866]
[1762141568665,7.17714866,178.84,178.75,0.67]
[1762141568864,7.17714866,178.86,178.76,7.17714866]
[1762141569300,7.17714866,178.88,178.8,7.17714866]
[1762141569588,7.17714866,178.86,178.78,7.17714866]
[1762141569968,0.55956577,178.87,178.79,26.85515397]
[1762141570165,7.17714866,178.85,178.79,6.26315397]
[1762141570371,7.17714866,178.83,178.79,0.67]
[1762141570593,0.55956577,178.87,178.79,0.67]
[1762141570786,7.17714866,178.85,178.79,0.67]
[1762141571093,7.17714866,178.86,178.79,0.67]
[1762141571292,7.17714866,178.84,178.79,0.67]
[1762141571477,50.0,178.89,178.79,0.67]
[1762141571478,7.17714866,178.82,178.79,0.67]
[1762141572304,7.17714866,178.82,178.79,6.26314942]
[1762141572490,4.88903834,178.82,178.79,6.26314942]
[1762141572795,4.88903834,178.84,178.8,0.67]
[1762141573093,3.50845631,178.83,178.8,0.67]
[1762141573313,3.50845631,178.82,178.8,0.67]
[1762141573520,5.44860411,178.84,178.8,0.67]
[1762141573818,5.44860411,178.84,158.3,5.0]
[1762141573819,4.88903834,178.82,178.76,0.67]
[1762141573994,4.88903834,178.78,178.76,0.67]
[1762141574195,4.88903834,178.8,178.76,0.67]
[1762141574418,3.51945796,178.79,178.76,6.26404087]
[1762141574583,4.88903834,178.8,178.77,0.67]
[1762141574786,3.51965329,178.79,178.77,0.67]
[1762141574984,3.51945796,178.78,178.77,0.67]
[1762141575919,4.88903834,178.8,178.77,6.26368062]
[1762141576316,4.88903834,178.8,178.78,0.67]
[1762141576480,4.88903834,178.8,178.77,5.59368062]
[1762141576481,4.88903834,178.8,178.73,26.18699357]
[1762141576686,4.88903834,178.79,178.78,0.67]
[1762141577587,4.88903834,178.8,178.78,0.67]
[1762141577901,8.41839421,178.83,178.78,0.67]
[1762141578204,4.88903834,178.86,178.78,6.26323825]
[1762141578410,8.41885794,178.85,178.78,25.13594366]
[1762141578709,4.88903834,178.85,178.79,0.67]
[1762141578916,4.88903834,178.84,178.79,0.67]
[1762141579128,0.55956577,178.87,178.79,0.67]
[1762141579411,4.88903834,178.84,178.79,0.67]
[1762141579614,4.88903834,178.82,178.79,0.67]
[1762141579911,4.88903834,178.82,178.74,14.54586674]
[1762141579912,4.88903834,178.8,178.76,0.67]
[1762141580298,4.08938537,178.85,178.76,0.67]
[1762141580299,4.88903834,178.81,178.76,20.24929822]
[1762141580514,0.55956577,178.84,178.78,4.88903834]
[1762141580717,0.55956577,178.85,178.77,5.55903834]
[1762141580922,3.53157437,178.87,178.8,4.88903834]
[1762141581122,4.88903834,178.87,178.8,4.88903834]
[1762141581323,4.88903834,178.87,178.81,5.55903834]
[1762141581489,4.88903834,178.84,178.81,0.67]
[1762141581994,4.88903834,178.85,178.82,5.59221563]
[1762141582198,0.55956577,178.88,178.82,5.59221563]
[1762141582389,9.68388501,178.91,178.79,4.88903834]
[1762141582592,4.88903834,178.85,178.8,0.67]
[1762141583013,4.88903834,178.86,178.8,0.67]
[1762141583517,0.55956577,178.89,178.8,0.67]
[1762141583717,4.88903834,178.83,178.8,0.67]
[1762141583928,0.55956577,178.89,178.77,5.59377971]
[1762141583929,4.88903834,178.81,178.77,0.67]
[1762141584404,0.55956577,178.85,178.77,0.67]
[1762141584610,4.88903834,178.81,178.77,0.67]
[1762141584818,4.88903834,178.83,178.77,5.55903834]
[1762141584990,4.88903834,178.84,178.77,5.55903834]
[1762141585313,70.592,178.88,178.8,4.88903834]
[1762141585314,4.88903834,178.86,178.8,4.88903834]
[1762141585493,4.88903834,178.85,178.78,5.55903834]
[1762141585686,4.88903834,178.85,178.79,4.88903834]
[1762141585887,4.88903834,178.85,178.79,5.60903834]
[1762141586091,4.88903834,178.85,178.8,6.31270631]
[1762141586309,0.55956577,178.88,178.8,6.31270631]
[1762141586490,4.88903834,178.85,178.81,0.72]
[1762141586706,4.88903834,178.86,178.81,0.72]
[1762141587213,4.88903834,178.82,178.76,0.55940926]
[1762141587403,5.44860411,178.88,178.75,0.72]
[1762141587404,4.88903834,178.8,178.75,0.72]
[1762141587606,4.88903834,178.8,178.76,0.72]
[1762141587992,4.88903834,178.78,178.76,0.72]
[1762141588197,4.88903834,178.79,178.76,6.3140438]
[1762141588407,4.88903834,178.79,178.76,0.72]
[1762141588718,0.55956577,178.81,178.74,5.59471858]
[1762141588927,4.88903834,178.79,178.76,0.72]
[1762141589307,4.88903834,178.8,178.76,0.72]
[1762141590323,4.88903834,178.79,178.76,0.72]
[1762141590634,4.88903834,178.77,178.72,0.72]
[1762141590807,0.55956577,178.8,178.72,0.72]
[1762141591014,4.88903834,178.79,178.73,4.88903834]
[1762141591523,4.88903834,178.79,178.74,0.72]
[1762141592334,4.88903834,178.79,178.75,5.59440559]
[1762141592698,4.88903834,178.79,178.76,0.72]
[1762141592894,4.88903834,178.8,178.76,0.72]
[1762141593532,0.55956577,178.83,178.76,5.60903834]
[1762141593728,4.88903834,178.84,178.78,4.88903834]
[1762141593896,4.88903834,178.83,178.78,4.88903834]
[1762141594094,4.88903834,178.83,178.79,0.72]
[1762141594634,4.88903834,178.85,178.8,5.59284116]
[1762141594796,4.88903834,178.85,178.79,5.60903834]
[1762141595124,4.88903834,178.84,178.79,6.31312588]
[1762141595296,4.88903834,178.83,178.8,0.72]
[1762141595698,0.55956577,178.82,178.75,0.72]
[1762141595916,4.88903834,178.8,178.75,5.60903834]
[1762141596111,4.88903834,178.78,178.75,0.71]
[1762141596430,4.88903834,178.78,178.74,5.59461653]
[1762141596631,4.88903834,178.77,178.74,6.30461653]
[1762141596834,4.88903834,178.77,178.74,0.71]
[1762141597148,4.88903834,178.78,178.75,0.71]
[1762141597446,0.55956577,178.82,178.75,4.88903834]
[1762141597447,4.88903834,178.81,178.75,4.88903834]
[1762141597623,4.88903834,178.82,178.76,5.59903834]
[1762141597824,4.88903834,178.81,178.76,0.71]
[1762141598152,0.55956577,178.83,178.77,0.71]
[1762141598319,4.88903834,178.82,178.77,0.71]
[1762141598636,4.88903834,178.81,178.77,6.30363756]